[Event "FIDE World Rapid Chess Championship 2021"]
[White "Grischuk, Alexander"]
[Black "Caruana, Fabiano"]
[WhiteFideId "4126025"]
[BlackFideId "2020009"]
[WhiteElo "2763"]
[BlackElo "2770"]
[Result "0-1"]
[Round "12"]
[TimeControl "900+10"]
[Date "2021.12.28"]
[WhiteClock "0:00:19"]
[BlackClock "0:01:40"]

1. c4 {[%clk 0:15:16]}  e5 {[%clk 0:15:06]} 2. Nf3 {[%clk 0:15:16]}  e4 {[%clk 0:15:19]} 3. Nd4 {[%clk 0:15:16]}  Nc6 {[%clk 0:15:19]} 4. e3 {[%clk 0:15:16]}  Nf6 {[%clk 0:15:19]} 5. Nc3 {[%clk 0:15:16]}  Ne5 {[%clk 0:15:19]} 6. f4 {[%clk 0:14:39]}  Nd3+ {[%clk 0:15:34]} 7. Bxd3 {[%clk 0:14:39]}  exd3 {[%clk 0:15:34]} 8. O-O {[%clk 0:14:39]}  d5 {[%clk 0:15:34]} 9. cxd5 {[%clk 0:14:39]}  Nxd5 {[%clk 0:15:34]} 10. Nxd5 {[%clk 0:11:50]}  Qxd5 {[%clk 0:15:47]} 11. b4 {[%clk 0:11:50]}  b6 {[%clk 0:15:47]} 12. Bb2 {[%clk 0:11:50]}  Bb7 {[%clk 0:15:47]} 13. Rf2 {[%clk 0:09:09]}  Be7 {[%clk 0:16:09]} 14. Bc3 {[%clk 0:07:17]}  O-O-O {[%clk 0:11:40]} 15. b5 {[%clk 0:06:20]}  h5 {[%clk 0:11:40]} 16. a4 {[%clk 0:06:20]}  Rh6 {[%clk 0:10:24]} 17. f5 {[%clk 0:04:39]}  Bh4 {[%clk 0:08:51]} 18. Rf3 {[%clk 0:04:39]}  g5 {[%clk 0:08:51]} 19. f6 {[%clk 0:04:39]}  g4 {[%clk 0:08:47]} 20. Nf5 {[%clk 0:00:58]}  gxf3 {[%clk 0:07:36]} 21. Ne7+ {[%clk 0:01:06]}  Kb8 {[%clk 0:07:36]} 22. Nxd5 {[%clk 0:01:06]}  f2+ {[%clk 0:07:36]} 23. Kf1 {[%clk 0:01:06]}  Bxd5 {[%clk 0:07:36]} 24. Be5 {[%clk 0:01:06]}  Bxf6 {[%clk 0:05:26]} 25. Bf4 {[%clk 0:00:42]}  Rg6 {[%clk 0:05:26]} 26. g3 {[%clk 0:00:42]}  Bg5 {[%clk 0:04:04]} 27. Bxg5 {[%clk 0:00:37]}  Rxg5 {[%clk 0:04:04]} 28. Kxf2 {[%clk 0:00:37]}  h4 {[%clk 0:04:04]} 29. e4 {[%clk 0:00:37]}  Bxe4 {[%clk 0:04:04]} 30. Qe1 {[%clk 0:00:37]}  hxg3+ {[%clk 0:04:04]} 31. hxg3 {[%clk 0:00:37]}  Rf5+ {[%clk 0:04:04]} 32. Kg1 {[%clk 0:00:19]}  Bd5 {[%clk 0:01:47]} 33. g4 {[%clk 0:00:19]}  Rg8 {[%clk 0:01:47]} 34. Qg3 {[%clk 0:00:19]}  Rf3 {[%clk 0:01:47]} 35. Qg2 {[%clk 0:00:19]}  f5 {[%clk 0:01:47]} 36. g5 {[%clk 0:00:19]}  f4 {[%clk 0:01:40]} 0-1


[Site "http://www.Chess.com"]

[Event "FIDE World Rapid Chess Championship 2021"]
[White "Duda, Jan-Krzysztof"]
[Black "Salem, A.R. Saleh"]
[WhiteFideId "1170546"]
[BlackFideId "9301348"]
[WhiteElo "2801"]
[BlackElo "2729"]
[Result "1-0"]
[Round "12"]
[TimeControl "900+10"]
[Date "2021.12.28"]
[WhiteClock "0:00:19"]
[BlackClock "0:00:01"]

1. d4 {[%clk 0:15:00]}  d5 {[%clk 0:15:00]} 2. c4 {[%clk 0:15:00]}  e6 {[%clk 0:15:00]} 3. Nc3 {[%clk 0:15:00]}  Nf6 {[%clk 0:15:00]} 4. cxd5 {[%clk 0:15:00]}  exd5 {[%clk 0:15:00]} 5. Bg5 {[%clk 0:15:00]}  c6 {[%clk 0:16:07]} 6. e3 {[%clk 0:15:07]}  h6 {[%clk 0:16:07]} 7. Bh4 {[%clk 0:15:07]}  Be7 {[%clk 0:16:07]} 8. Bd3 {[%clk 0:15:07]}  O-O {[%clk 0:16:07]} 9. Nge2 {[%clk 0:15:07]}  Re8 {[%clk 0:16:07]} 10. O-O {[%clk 0:15:07]}  Nbd7 {[%clk 0:16:07]} 11. f3 {[%clk 0:15:07]}  b5 {[%clk 0:16:07]} 12. Rc1 {[%clk 0:15:07]}  a5 {[%clk 0:16:07]} 13. Bf2 {[%clk 0:15:07]}  Ba6 {[%clk 0:15:29]} 14. Ng3 {[%clk 0:13:42]}  Bd6 {[%clk 0:10:02]} 15. Nce2 {[%clk 0:13:31]}  c5 {[%clk 0:10:02]} 16. Nf5 {[%clk 0:11:14]}  Bf8 {[%clk 0:10:02]} 17. dxc5 {[%clk 0:11:14]}  Nxc5 {[%clk 0:10:02]} 18. Bb1 {[%clk 0:11:14]}  b4 {[%clk 0:10:02]} 19. Re1 {[%clk 0:11:14]}  Rc8 {[%clk 0:10:02]} 20. Nf4 {[%clk 0:11:14]}  g6 {[%clk 0:10:02]} 21. Nd4 {[%clk 0:11:14]}  Qb6 {[%clk 0:08:48]} 22. Qd2 {[%clk 0:11:03]}  Bd6 {[%clk 0:08:48]} 23. b3 {[%clk 0:10:27]}  Qb8 {[%clk 0:07:12]} 24. g4 {[%clk 0:10:27]}  Ncd7 {[%clk 0:07:12]} 25. Kg2 {[%clk 0:05:49]}  Ne5 {[%clk 0:06:19]} 26. h4 {[%clk 0:05:49]}  Rxc1 {[%clk 0:06:14]} 27. Rxc1 {[%clk 0:04:58]}  Qd8 {[%clk 0:06:14]} 28. Rh1 {[%clk 0:04:58]}  Qd7 {[%clk 0:03:04]} 29. Rh3 {[%clk 0:02:15]}  Bb8 {[%clk 0:02:37]} 30. h5 {[%clk 0:02:15]}  Nexg4 {[%clk 0:02:37]} 31. hxg6 {[%clk 0:01:32]}  Bxf4 {[%clk 0:01:08]} 32. exf4 {[%clk 0:01:32]}  Bf1+ {[%clk 0:01:08]} 33. Kxf1 {[%clk 0:01:14]}  Ne3+ {[%clk 0:00:38]} 34. Bxe3 {[%clk 0:01:14]}  Qxh3+ {[%clk 0:00:38]} 35. Ke2 {[%clk 0:01:14]}  fxg6 {[%clk 0:00:38]} 36. Kd1 {[%clk 0:01:14]}  Ng4 {[%clk 0:00:38]} 37. fxg4 {[%clk 0:01:14]}  Rxe3 {[%clk 0:00:38]} 38. Bxg6 {[%clk 0:01:14]}  Rc3 {[%clk 0:00:38]} 39. Ne2 {[%clk 0:01:14]}  Qf1+ {[%clk 0:00:38]} 40. Qe1 {[%clk 0:01:14]}  Qf3 {[%clk 0:00:38]} 41. Qh4 {[%clk 0:01:14]}  Re3 {[%clk 0:00:38]} 42. Qh2 {[%clk 0:00:19]}  d4 {[%clk 0:00:01]} 43. Kd2 {[%clk 0:00:19]}  Rxe2+ {[%clk 0:00:01]} 44. Qxe2 {[%clk 0:00:19]}  Qc3+ {[%clk 0:00:01]} 45. Kd1 {[%clk 0:00:19]}  Qa1+ {[%clk 0:00:01]} 46. Kd2 {[%clk 0:00:19]}  Qc3+ {[%clk 0:00:01]} 47. Kd1 {[%clk 0:00:19]}  Qa1+ {[%clk 0:00:01]} 48. Kc2 {[%clk 0:00:19]}  Qxa2+ {[%clk 0:00:01]} 49. Kd3 {[%clk 0:00:19]}  Qxb3+ {[%clk 0:00:01]} 50. Kxd4 {[%clk 0:00:19]}  Qc3+ {[%clk 0:00:01]} 51. Ke4 {[%clk 0:00:19]} 1-0


[Site "http://www.Chess.com"]

[Event "FIDE World Rapid Chess Championship 2021"]
[White "Fedoseev, Vladimir"]
[Black "Karjakin, Sergey"]
[WhiteFideId "24130737"]
[BlackFideId "14109603"]
[WhiteElo "2692"]
[BlackElo "2757"]
[Result "1/2-1/2"]
[Round "12"]
[TimeControl "900+10"]
[Date "2021.12.28"]
[WhiteClock "0:00:52"]
[BlackClock "0:00:01"]

1. d4 {[%clk 0:15:00]}  Nf6 {[%clk 0:15:00]} 2. c4 {[%clk 0:15:27]}  e6 {[%clk 0:15:19]} 3. Nf3 {[%clk 0:15:27]}  d5 {[%clk 0:15:28]} 4. g3 {[%clk 0:15:27]}  Be7 {[%clk 0:15:28]} 5. Bg2 {[%clk 0:15:27]}  O-O {[%clk 0:15:28]} 6. O-O {[%clk 0:15:27]}  dxc4 {[%clk 0:15:28]} 7. Qc2 {[%clk 0:15:27]}  a6 {[%clk 0:15:28]} 8. a4 {[%clk 0:15:27]}  Bd7 {[%clk 0:15:28]} 9. Qxc4 {[%clk 0:15:27]}  Bc6 {[%clk 0:15:28]} 10. Bf4 {[%clk 0:15:27]}  Bd6 {[%clk 0:15:09]} 11. Bd2 {[%clk 0:16:03]}  Nbd7 {[%clk 0:15:09]} 12. Nc3 {[%clk 0:16:03]}  h6 {[%clk 0:14:29]} 13. Qd3 {[%clk 0:16:02]}  Bb4 {[%clk 0:11:53]} 14. Rfe1 {[%clk 0:13:39]}  a5 {[%clk 0:09:48]} 15. Qc2 {[%clk 0:13:01]}  Bxf3 {[%clk 0:09:48]} 16. Bxf3 {[%clk 0:13:01]}  c6 {[%clk 0:09:48]} 17. Rad1 {[%clk 0:13:01]}  Qe7 {[%clk 0:09:48]} 18. Bg2 {[%clk 0:13:01]}  Rfd8 {[%clk 0:09:48]} 19. e4 {[%clk 0:11:51]}  e5 {[%clk 0:09:17]} 20. Ne2 {[%clk 0:11:51]}  exd4 {[%clk 0:09:17]} 21. Nxd4 {[%clk 0:11:51]}  Ne5 {[%clk 0:08:25]} 22. Bc3 {[%clk 0:10:36]}  Bxc3 {[%clk 0:08:25]} 23. bxc3 {[%clk 0:10:36]}  Qc5 {[%clk 0:06:16]} 24. f4 {[%clk 0:10:28]}  Nc4 {[%clk 0:06:16]} 25. h3 {[%clk 0:10:28]}  b5 {[%clk 0:05:19]} 26. axb5 {[%clk 0:09:00]}  cxb5 {[%clk 0:05:19]} 27. Kh2 {[%clk 0:09:00]}  Rac8 {[%clk 0:05:19]} 28. Rd3 {[%clk 0:08:25]}  a4 {[%clk 0:03:42]} 29. e5 {[%clk 0:08:25]}  Nd5 {[%clk 0:03:42]} 30. e6 {[%clk 0:06:24]}  Nde3 {[%clk 0:03:33]} 31. Qe2 {[%clk 0:06:26]}  fxe6 {[%clk 0:00:00]} 32. Bb7 {[%clk 0:04:44]}  Rb8 {[%clk 0:00:00]} 33. Be4 {[%clk 0:04:44]}  Rd6 {[%clk 0:00:00]} 34. Qa2 {[%clk 0:03:02]}  b4 {[%clk 0:00:02]} 35. Qxa4 {[%clk 0:01:19]}  bxc3 {[%clk 0:00:02]} 36. Nb3 {[%clk 0:01:19]}  Qb4 {[%clk 0:00:02]} 37. Qxb4 {[%clk 0:01:19]}  Rxb4 {[%clk 0:00:02]} 38. Rxc3 {[%clk 0:01:19]}  Ra6 {[%clk 0:00:02]} 39. Bg6 {[%clk 0:01:19]}  Ra2+ {[%clk 0:00:02]} 40. Kh1 {[%clk 0:01:19]}  Kf8 {[%clk 0:00:02]} 41. Nc1 {[%clk 0:01:19]}  Ra1 {[%clk 0:00:02]} 42. Nd3 {[%clk 0:01:19]}  Rxe1+ {[%clk 0:00:02]} 43. Nxe1 {[%clk 0:01:19]}  Ke7 {[%clk 0:00:02]} 44. Bd3 {[%clk 0:01:19]}  Nd6 {[%clk 0:00:02]} 45. Nf3 {[%clk 0:01:19]}  Ndc4 {[%clk 0:00:02]} 46. Kg1 {[%clk 0:00:52]}  Kf6 {[%clk 0:00:01]} 47. Be2 {[%clk 0:00:52]}  Kf5 {[%clk 0:00:01]} 48. Nd4+ {[%clk 0:00:52]}  Ke4 {[%clk 0:00:01]} 49. Nxe6 {[%clk 0:00:52]}  Rb2 {[%clk 0:00:01]} 50. Bxc4 {[%clk 0:00:52]}  Rb1+ {[%clk 0:00:01]} 51. Kh2 {[%clk 0:00:52]}  Rb2+ {[%clk 0:00:01]} 52. Kg1 {[%clk 0:00:52]}  Rb1+ {[%clk 0:00:01]} 53. Kh2 {[%clk 0:00:52]}  Rb2+ {[%clk 0:00:01]} 54. Kg1 {[%clk 0:00:52]}  Rb1+ {[%clk 0:00:01]} 1/2-1/2


[Site "http://www.Chess.com"]

[Event "FIDE World Rapid Chess Championship 2021"]
[White "Firouzja, Alireza"]
[Black "Dubov, Daniil"]
[WhiteFideId "12573981"]
[BlackFideId "24126055"]
[WhiteElo "2656"]
[BlackElo "2735"]
[Result "1/2-1/2"]
[Round "12"]
[TimeControl "900+10"]
[Date "2021.12.28"]
[WhiteClock "0:00:03"]
[BlackClock "0:00:22"]

1. e4 {[%clk 0:15:00]}  c5 {[%clk 0:15:00]} 2. Nf3 {[%clk 0:15:18]}  d6 {[%clk 0:15:00]} 3. d4 {[%clk 0:15:18]}  cxd4 {[%clk 0:15:00]} 4. Nxd4 {[%clk 0:15:18]}  Nf6 {[%clk 0:15:00]} 5. Nc3 {[%clk 0:15:18]}  Nc6 {[%clk 0:15:00]} 6. Bg5 {[%clk 0:15:18]}  g6 {[%clk 0:15:00]} 7. Bxf6 {[%clk 0:14:31]}  exf6 {[%clk 0:16:21]} 8. Bb5 {[%clk 0:14:31]}  Bd7 {[%clk 0:16:21]} 9. Nde2 {[%clk 0:14:31]}  Be6 {[%clk 0:16:21]} 10. f4 {[%clk 0:14:31]}  Bg7 {[%clk 0:16:21]} 11. f5 {[%clk 0:12:46]}  gxf5 {[%clk 0:16:21]} 12. exf5 {[%clk 0:12:30]}  Bxf5 {[%clk 0:14:09]} 13. O-O {[%clk 0:12:30]}  Bg6 {[%clk 0:14:17]} 14. Kh1 {[%clk 0:08:41]}  O-O {[%clk 0:14:17]} 15. Nd5 {[%clk 0:08:41]}  Ne7 {[%clk 0:12:53]} 16. Nef4 {[%clk 0:07:58]}  Nxd5 {[%clk 0:12:53]} 17. Qxd5 {[%clk 0:07:58]}  Qb6 {[%clk 0:11:24]} 18. Bd3 {[%clk 0:06:39]}  Kh8 {[%clk 0:11:24]} 19. Rad1 {[%clk 0:06:44]}  Rae8 {[%clk 0:09:53]} 20. b3 {[%clk 0:03:21]}  Bh6 {[%clk 0:09:53]} 21. Qf3 {[%clk 0:03:21]}  Re3 {[%clk 0:07:48]} 22. Qg4 {[%clk 0:02:29]}  Bxf4 {[%clk 0:06:31]} 23. Qxf4 {[%clk 0:02:25]}  d5 {[%clk 0:06:31]} 24. Bxg6 {[%clk 0:02:25]}  hxg6 {[%clk 0:06:31]} 25. Rd4 {[%clk 0:02:25]}  Re4 {[%clk 0:04:20]} 26. Qh6+ {[%clk 0:01:28]}  Kg8 {[%clk 0:04:20]} 27. Rd3 {[%clk 0:01:28]}  Qf2 {[%clk 0:04:20]} 28. Rf3 {[%clk 0:01:28]}  Qh4 {[%clk 0:04:20]} 29. Qxh4 {[%clk 0:01:28]}  Rxh4 {[%clk 0:04:20]} 30. Rxf6 {[%clk 0:01:28]}  Re4 {[%clk 0:03:03]} 31. Kg1 {[%clk 0:01:39]}  Re7 {[%clk 0:03:03]} 32. Rd1 {[%clk 0:01:39]}  Rc8 {[%clk 0:03:03]} 33. Rf2 {[%clk 0:01:39]}  Kg7 {[%clk 0:03:03]} 34. Kf1 {[%clk 0:01:17]}  Rec7 {[%clk 0:01:49]} 35. Rdd2 {[%clk 0:01:17]}  Rc5 {[%clk 0:01:49]} 36. Ke1 {[%clk 0:01:17]}  f5 {[%clk 0:01:49]} 37. Kd1 {[%clk 0:01:17]}  Kf6 {[%clk 0:00:54]} 38. Kc1 {[%clk 0:01:29]}  Re8 {[%clk 0:00:54]} 39. Rf3 {[%clk 0:01:29]}  Rh8 {[%clk 0:00:54]} 40. h3 {[%clk 0:01:29]}  Re8 {[%clk 0:00:54]} 41. Rfd3 {[%clk 0:01:29]}  Re5 {[%clk 0:00:54]} 42. Rd4 {[%clk 0:01:29]}  a5 {[%clk 0:00:54]} 43. a4 {[%clk 0:01:29]}  g5 {[%clk 0:00:54]} 44. Kb2 {[%clk 0:01:29]}  Ke6 {[%clk 0:00:54]} 45. g4 {[%clk 0:00:48]}  f4 {[%clk 0:00:30]} 46. h4 {[%clk 0:00:48]}  gxh4 {[%clk 0:00:30]} 47. Rxf4 {[%clk 0:00:48]}  Re4 {[%clk 0:00:30]} 48. Rf5 {[%clk 0:00:48]}  Rxg4 {[%clk 0:00:30]} 49. Rh5 {[%clk 0:00:48]}  Kd6 {[%clk 0:00:30]} 50. Rf2 {[%clk 0:00:48]}  Re4 {[%clk 0:00:30]} 51. Rg2 {[%clk 0:00:48]}  Rc6 {[%clk 0:00:30]} 52. Rh7 {[%clk 0:00:48]}  b6 {[%clk 0:00:30]} 53. Rh5 {[%clk 0:00:48]}  Kc5 {[%clk 0:00:30]} 54. Rh2 {[%clk 0:00:48]}  Rd6 {[%clk 0:00:30]} 55. Rh8 {[%clk 0:00:03]}  b5 {[%clk 0:00:22]} 56. axb5 {[%clk 0:00:03]}  Kxb5 {[%clk 0:00:22]} 57. R8xh4 {[%clk 0:00:03]}  Rxh4 {[%clk 0:00:22]} 58. Rxh4 {[%clk 0:00:03]}  Re6 {[%clk 0:00:22]} 59. Rh5 {[%clk 0:00:03]}  Kc5 {[%clk 0:00:22]} 60. Ka3 {[%clk 0:00:03]}  Rd6 {[%clk 0:00:22]} 61. c4 {[%clk 0:00:03]}  a4 {[%clk 0:00:22]} 62. cxd5 {[%clk 0:00:03]}  axb3 {[%clk 0:00:22]} 63. Kxb3 {[%clk 0:00:03]}  Rxd5 {[%clk 0:00:22]} 64. Rxd5+ {[%clk 0:00:03]}  Kxd5 {[%clk 0:00:22]} 1/2-1/2


[Site "http://www.Chess.com"]

[Event "FIDE World Rapid Chess Championship 2021"]
[White "Mamedyarov, Shakhriyar"]
[Black "Cheparinov, Ivan"]
[WhiteFideId "13401319"]
[BlackFideId "2905540"]
[WhiteElo "2727"]
[BlackElo "2621"]
[Result "1-0"]
[Round "12"]
[TimeControl "900+10"]
[Date "2021.12.28"]
[WhiteClock "0:01:53"]
[BlackClock "0:00:40"]

1. d4 {[%clk 0:15:00]}  Nf6 {[%clk 0:15:18]} 2. Bg5 {[%clk 0:15:28]}  c5 {[%clk 0:15:18]} 3. d5 {[%clk 0:15:28]}  d6 {[%clk 0:15:18]} 4. Nc3 {[%clk 0:15:28]}  h6 {[%clk 0:15:18]} 5. Bxf6 {[%clk 0:14:01]}  exf6 {[%clk 0:15:20]} 6. e4 {[%clk 0:14:01]}  g6 {[%clk 0:15:20]} 7. Bd3 {[%clk 0:14:01]}  Bg7 {[%clk 0:15:20]} 8. Nge2 {[%clk 0:14:01]}  O-O {[%clk 0:14:39]} 9. O-O {[%clk 0:12:38]}  Nd7 {[%clk 0:14:39]} 10. f4 {[%clk 0:12:38]}  a6 {[%clk 0:13:19]} 11. a4 {[%clk 0:12:07]}  Qc7 {[%clk 0:13:19]} 12. b3 {[%clk 0:12:07]}  Nb6 {[%clk 0:11:13]} 13. f5 {[%clk 0:11:24]}  c4 {[%clk 0:10:25]} 14. bxc4 {[%clk 0:11:24]}  Nxc4 {[%clk 0:10:25]} 15. Qe1 {[%clk 0:11:24]}  Bd7 {[%clk 0:10:25]} 16. Kh1 {[%clk 0:11:24]}  Rac8 {[%clk 0:10:25]} 17. Bxc4 {[%clk 0:08:30]}  Qxc4 {[%clk 0:09:33]} 18. Qg3 {[%clk 0:08:30]}  g5 {[%clk 0:09:33]} 19. Qxd6 {[%clk 0:08:30]}  Rfd8 {[%clk 0:09:33]} 20. Qb6 {[%clk 0:08:06]}  Qc7 {[%clk 0:08:27]} 21. Rab1 {[%clk 0:08:06]}  Qxb6 {[%clk 0:08:27]} 22. Rxb6 {[%clk 0:08:06]}  Rc7 {[%clk 0:06:42]} 23. Rfb1 {[%clk 0:06:59]}  Bc8 {[%clk 0:05:36]} 24. R1b3 {[%clk 0:06:59]}  Bf8 {[%clk 0:05:36]} 25. Rxf6 {[%clk 0:06:59]}  Rd6 {[%clk 0:05:36]} 26. Rxd6 {[%clk 0:06:59]}  Bxd6 {[%clk 0:05:36]} 27. Kg1 {[%clk 0:06:59]}  Be5 {[%clk 0:05:01]} 28. Kf2 {[%clk 0:04:24]}  b5 {[%clk 0:05:01]} 29. axb5 {[%clk 0:04:24]}  axb5 {[%clk 0:05:01]} 30. Nxb5 {[%clk 0:04:24]}  Rxc2 {[%clk 0:03:44]} 31. Ke3 {[%clk 0:03:43]}  Ba6 {[%clk 0:03:44]} 32. g3 {[%clk 0:03:43]}  Kg7 {[%clk 0:03:44]} 33. Nbd4 {[%clk 0:03:43]}  Ra2 {[%clk 0:03:44]} 34. Nc3 {[%clk 0:03:43]}  Ra1 {[%clk 0:03:23]} 35. Nf3 {[%clk 0:03:07]}  Bd6 {[%clk 0:03:23]} 36. Kd4 {[%clk 0:01:44]}  f6 {[%clk 0:01:37]} 37. e5 {[%clk 0:01:44]}  fxe5+ {[%clk 0:00:35]} 38. Nxe5 {[%clk 0:01:50]}  Re1 {[%clk 0:00:35]} 39. f6+ {[%clk 0:01:50]}  Kf8 {[%clk 0:00:35]} 40. Nf3 {[%clk 0:01:50]}  Rf1 {[%clk 0:00:35]} 41. Rb6 {[%clk 0:01:50]}  Rxf3 {[%clk 0:00:35]} 42. Rxd6 {[%clk 0:01:50]}  Bf1 {[%clk 0:00:35]} 43. Ne4 {[%clk 0:01:50]}  Rd3+ {[%clk 0:00:35]} 44. Ke5 {[%clk 0:01:50]}  Re3 {[%clk 0:00:35]} 45. Rd8+ {[%clk 0:01:50]}  Kf7 {[%clk 0:00:35]} 46. Rd7+ {[%clk 0:01:50]}  Kf8 {[%clk 0:00:35]} 47. Re7 {[%clk 0:01:50]}  Bg2 {[%clk 0:00:35]} 48. Kd4 {[%clk 0:01:50]}  Re1 {[%clk 0:00:35]} 49. d6 {[%clk 0:01:53]}  Rd1+ {[%clk 0:00:40]} 50. Kc5 {[%clk 0:01:53]} 1-0


[Site "http://www.Chess.com"]

[Event "FIDE World Rapid Chess Championship 2021"]
[White "Vachier-Lagrave, Maxime"]
[Black "Petrosian, Tigran L."]
[WhiteFideId "623539"]
[BlackFideId "13301616"]
[WhiteElo "2773"]
[BlackElo "2621"]
[Result "1-0"]
[Round "12"]
[TimeControl "900+10"]
[Date "2021.12.28"]
[WhiteClock "0:06:13"]
[BlackClock "0:00:29"]

1. e4 {[%clk 0:15:00]}  g6 {[%clk 0:15:17]} 2. d4 {[%clk 0:15:19]}  Bg7 {[%clk 0:15:17]} 3. Nc3 {[%clk 0:15:19]}  c6 {[%clk 0:15:17]} 4. Nf3 {[%clk 0:15:19]}  d6 {[%clk 0:15:17]} 5. h3 {[%clk 0:15:19]}  Nf6 {[%clk 0:15:17]} 6. a4 {[%clk 0:15:19]}  O-O {[%clk 0:15:17]} 7. Bd3 {[%clk 0:15:19]}  Nbd7 {[%clk 0:14:47]} 8. O-O {[%clk 0:15:47]}  e5 {[%clk 0:14:47]} 9. Re1 {[%clk 0:15:47]}  Re8 {[%clk 0:14:47]} 10. dxe5 {[%clk 0:15:47]}  dxe5 {[%clk 0:14:47]} 11. Bc4 {[%clk 0:15:47]}  h6 {[%clk 0:14:47]} 12. a5 {[%clk 0:15:47]}  Qc7 {[%clk 0:14:47]} 13. b3 {[%clk 0:15:15]}  Nf8 {[%clk 0:13:04]} 14. Be3 {[%clk 0:14:10]}  Ne6 {[%clk 0:13:04]} 15. Qc1 {[%clk 0:14:10]}  Nd4 {[%clk 0:10:17]} 16. Nxd4 {[%clk 0:14:09]}  exd4 {[%clk 0:10:17]} 17. Bxd4 {[%clk 0:14:09]}  Ng4 {[%clk 0:10:17]} 18. Bxg7 {[%clk 0:14:09]}  Qh2+ {[%clk 0:10:17]} 19. Kf1 {[%clk 0:14:09]}  Kxg7 {[%clk 0:06:03]} 20. hxg4 {[%clk 0:13:04]}  Qh1+ {[%clk 0:06:03]} 21. Ke2 {[%clk 0:13:04]}  Bxg4+ {[%clk 0:06:03]} 22. Kd2 {[%clk 0:13:04]}  Qxg2 {[%clk 0:04:50]} 23. Nd1 {[%clk 0:11:47]}  Rxe4 {[%clk 0:02:10]} 24. Qb2+ {[%clk 0:11:47]}  f6 {[%clk 0:02:10]} 25. Rxe4 {[%clk 0:11:47]}  Qxe4 {[%clk 0:02:10]} 26. Ne3 {[%clk 0:11:47]}  Rd8+ {[%clk 0:02:10]} 27. Bd3 {[%clk 0:11:47]}  Qf4 {[%clk 0:01:43]} 28. Rf1 {[%clk 0:10:48]}  Bh3 {[%clk 0:01:43]} 29. Qa3 {[%clk 0:10:48]}  Rd7 {[%clk 0:01:43]} 30. Re1 {[%clk 0:10:48]}  Qxf2+ {[%clk 0:00:22]} 31. Re2 {[%clk 0:10:00]}  Qf4 {[%clk 0:00:22]} 32. Ke1 {[%clk 0:10:00]}  h5 {[%clk 0:00:22]} 33. Qc5 {[%clk 0:10:00]}  h4 {[%clk 0:00:22]} 34. Qxa7 {[%clk 0:10:00]}  Be6 {[%clk 0:00:22]} 35. Ng2 {[%clk 0:08:46]}  Qb4+ {[%clk 0:00:17]} 36. Kf1 {[%clk 0:08:46]}  h3 {[%clk 0:00:17]} 37. Ne1 {[%clk 0:06:13]}  Bg4 {[%clk 0:00:29]} 38. Re4 {[%clk 0:06:13]}  Qd2 {[%clk 0:00:29]} 39. Rxg4 {[%clk 0:06:13]}  h2 {[%clk 0:00:29]} 40. Rh4 {[%clk 0:06:13]}  Re7 {[%clk 0:00:29]} 41. Qf2 {[%clk 0:06:13]}  Rxe1+ {[%clk 0:00:29]} 42. Qxe1 {[%clk 0:06:13]} 1-0


[Site "http://www.Chess.com"]

[Event "FIDE World Rapid Chess Championship 2021"]
[White "Alekseenko, Kirill"]
[Black "Giri, Anish"]
[WhiteFideId "4135539"]
[BlackFideId "24116068"]
[WhiteElo "2637"]
[BlackElo "2767"]
[Result "1/2-1/2"]
[Round "12"]
[TimeControl "900+10"]
[Date "2021.12.28"]
[WhiteClock "0:00:21"]
[BlackClock "0:00:21"]

1. e4 {[%clk 0:15:00]}  c5 {[%clk 0:15:19]} 2. Nf3 {[%clk 0:15:18]}  d6 {[%clk 0:15:19]} 3. d4 {[%clk 0:15:18]}  cxd4 {[%clk 0:15:19]} 4. Nxd4 {[%clk 0:15:18]}  Nf6 {[%clk 0:15:19]} 5. Nc3 {[%clk 0:15:18]}  a6 {[%clk 0:15:19]} 6. Be2 {[%clk 0:15:18]}  e5 {[%clk 0:15:19]} 7. Nb3 {[%clk 0:15:18]}  Be7 {[%clk 0:15:19]} 8. O-O {[%clk 0:15:18]}  O-O {[%clk 0:15:19]} 9. Kh1 {[%clk 0:15:18]}  Nc6 {[%clk 0:15:19]} 10. f4 {[%clk 0:15:35]}  Re8 {[%clk 0:15:53]} 11. Be3 {[%clk 0:15:35]}  exf4 {[%clk 0:15:53]} 12. Bxf4 {[%clk 0:15:35]}  Be6 {[%clk 0:15:53]} 13. Qe1 {[%clk 0:15:35]}  Nd7 {[%clk 0:15:47]} 14. Rd1 {[%clk 0:13:46]}  Nce5 {[%clk 0:12:32]} 15. Qg3 {[%clk 0:13:46]}  Rc8 {[%clk 0:12:32]} 16. Nd4 {[%clk 0:13:46]}  Bh4 {[%clk 0:12:32]} 17. Qe3 {[%clk 0:13:46]}  Nc4 {[%clk 0:12:13]} 18. Qc1 {[%clk 0:12:19]}  Bf6 {[%clk 0:12:13]} 19. Nxe6 {[%clk 0:12:11]}  fxe6 {[%clk 0:09:43]} 20. Bxc4 {[%clk 0:08:20]}  Rxc4 {[%clk 0:07:32]} 21. Rxd6 {[%clk 0:08:20]}  Bxc3 {[%clk 0:07:37]} 22. bxc3 {[%clk 0:08:20]}  Qc8 {[%clk 0:07:37]} 23. Qd1 {[%clk 0:08:20]}  Nf8 {[%clk 0:07:21]} 24. Be3 {[%clk 0:07:18]}  Rxc3 {[%clk 0:05:41]} 25. Bd4 {[%clk 0:07:18]}  Rxc2 {[%clk 0:05:41]} 26. h4 {[%clk 0:04:39]}  Rc6 {[%clk 0:04:50]} 27. Qf3 {[%clk 0:04:39]}  Rc7 {[%clk 0:04:19]} 28. h5 {[%clk 0:04:01]}  Ree7 {[%clk 0:04:19]} 29. Qg3 {[%clk 0:04:01]}  Rf7 {[%clk 0:04:19]} 30. Rxf7 {[%clk 0:04:01]}  Rxf7 {[%clk 0:02:04]} 31. Kh2 {[%clk 0:02:55]}  h6 {[%clk 0:02:04]} 32. Be3 {[%clk 0:02:55]}  Kh7 {[%clk 0:02:04]} 33. Bb6 {[%clk 0:02:55]}  Qc4 {[%clk 0:02:04]} 34. Bd4 {[%clk 0:01:31]}  Qe2 {[%clk 0:01:37]} 35. Qh4 {[%clk 0:01:31]}  Qxa2 {[%clk 0:01:37]} 36. Qg4 {[%clk 0:01:31]}  Qd2 {[%clk 0:01:06]} 37. Be5 {[%clk 0:00:59]}  Qg5 {[%clk 0:01:06]} 38. Qxg5 {[%clk 0:00:59]}  hxg5 {[%clk 0:01:06]} 39. Kg3 {[%clk 0:00:59]}  Kh6 {[%clk 0:01:06]} 40. Kg4 {[%clk 0:00:59]}  g6 {[%clk 0:01:06]} 41. hxg6 {[%clk 0:00:59]}  Kxg6 {[%clk 0:01:06]} 42. Rb6 {[%clk 0:00:59]}  Kh6 {[%clk 0:01:06]} 43. g3 {[%clk 0:00:59]}  Kg6 {[%clk 0:01:06]} 44. Bd4 {[%clk 0:00:59]}  Rc7 {[%clk 0:01:06]} 45. Be3 {[%clk 0:00:59]}  Rc4 {[%clk 0:01:06]} 46. Bxg5 {[%clk 0:00:32]}  Rxe4+ {[%clk 0:00:28]} 47. Bf4 {[%clk 0:00:32]}  Rd4 {[%clk 0:00:28]} 48. Rxb7 {[%clk 0:00:32]}  Nd7 {[%clk 0:00:28]} 49. Ra7 {[%clk 0:00:32]}  Nf6+ {[%clk 0:00:28]} 50. Kf3 {[%clk 0:00:32]}  Rd3+ {[%clk 0:00:28]} 51. Ke2 {[%clk 0:00:32]}  Ra3 {[%clk 0:00:28]} 52. Bd6 {[%clk 0:00:32]}  Ra4 {[%clk 0:00:28]} 53. Rc7 {[%clk 0:00:32]}  Nd5 {[%clk 0:00:28]} 54. Rc8 {[%clk 0:00:32]}  Kf5 {[%clk 0:00:28]} 55. Rh8 {[%clk 0:00:32]}  Rd4 {[%clk 0:00:28]} 56. Bc5 {[%clk 0:00:32]}  Rc4 {[%clk 0:00:28]} 57. Bd6 {[%clk 0:00:32]}  Rc3 {[%clk 0:00:50]} 58. Rh5+ {[%clk 0:00:32]}  Kg6 {[%clk 0:00:50]} 59. Rh8 {[%clk 0:00:32]}  Rb3 {[%clk 0:00:50]} 60. Rf8 {[%clk 0:00:32]}  Kg5 {[%clk 0:00:50]} 61. Re8 {[%clk 0:00:32]}  Re3+ {[%clk 0:00:50]} 62. Kf2 {[%clk 0:00:32]}  Re4 {[%clk 0:00:50]} 63. Rg8+ {[%clk 0:00:32]}  Kf5 {[%clk 0:00:50]} 64. Rf8+ {[%clk 0:00:21]}  Kg6 {[%clk 0:00:21]} 65. Rg8+ {[%clk 0:00:21]}  Kf7 {[%clk 0:00:21]} 66. Rf8+ {[%clk 0:00:21]}  Kg7 {[%clk 0:00:21]} 67. Ra8 {[%clk 0:00:21]}  Ra4 {[%clk 0:00:21]} 68. Kf3 {[%clk 0:00:21]}  Nb6 {[%clk 0:00:21]} 69. Be5+ {[%clk 0:00:21]}  Kg6 {[%clk 0:00:21]} 70. Rg8+ {[%clk 0:00:21]}  Kf5 {[%clk 0:00:21]} 71. Bb2 {[%clk 0:00:21]}  e5 {[%clk 0:00:21]} 72. Rf8+ {[%clk 0:00:21]}  Ke6 {[%clk 0:00:21]} 73. Re8+ {[%clk 0:00:21]}  Kd7 {[%clk 0:00:21]} 74. Rxe5 {[%clk 0:00:21]}  Nc4 {[%clk 0:00:21]} 75. Re2 {[%clk 0:00:21]} 1/2-1/2


[Site "http://www.Chess.com"]